bitfinex/quotes_ETHUSD_20251111
["timestamp","ask_amount","ask_price","bid_price","bid_amount"]
[1762904189132,0.1893,3422.8,3422.1,2.92213657]
[1762904189332,0.5,3422.2,3422.1,2.92213657]
[1762904189836,0.5,3422.3,3422.1,0.4101]
[1762904190133,0.5,3422.2,3422.1,2.92218228]
[1762904191306,0.5,3422.2,3421.6,1.0981]
[1762904191630,0.5,3421.9,3421.8,2.92239178]
[1762904191932,2.92182832,3422.6,3422.0,2.92219267]
[1762904191933,0.5,3422.1,3422.0,2.92219267]
[1762904193552,0.5,3421.8,3421.6,0.688]
[1762904193849,0.5,3421.8,3421.7,2.9224946]
[1762904194054,0.5,3421.8,3421.7,3.3325946]
[1762904195378,0.9619,3421.8,3421.1,3.02496268]
[1762904195512,0.9619,3421.8,3420.6,0.4101]
[1762904195513,0.5,3421.2,3420.6,0.4101]
[1762904195709,0.5,3420.9,3420.8,2.92324015]
[1762904196008,0.5,3420.4,3420.3,2.92372014]
[1762904196844,0.5,3420.4,3419.5,0.4101]
[1762904197022,0.6864,3420.9,3419.5,0.4101]
[1762904197023,0.5,3420.0,3419.9,2.9240621]
[1762904197226,0.5,3420.0,3418.9,0.4101]
[1762904197567,0.5,3419.4,3419.3,2.9245752]
[1762904198144,0.5,3419.4,3419.3,3.3346752]
[1762904198710,0.5,3419.4,3419.3,4.04490986]
[1762904198945,0.1893,3420.2,3419.6,2.92425713]
[1762904199247,0.1893,3420.2,3419.6,2.92429666]
[1762904199248,0.5,3419.7,3419.6,2.92429666]
[1762904199547,0.5,3419.6,3419.5,2.92436395]
[1762904200118,0.5,3419.6,3419.5,3.33446395]
[1762904200338,0.5,3420.0,3419.9,2.92406123]
[1762904200535,0.76972133,3420.0,3419.9,2.92406123]
[1762904200915,0.26972133,3420.0,3419.1,3.48883231]
[1762904201112,0.26972133,3419.9,3419.2,3.33470345]
[1762904201315,0.4971,3420.8,3420.2,2.92379362]
[1762904201550,0.5,3420.3,3420.2,2.92379362]
[1762904201725,0.76981336,3420.3,3420.2,2.92379362]
[1762904202053,0.5,3420.8,3420.7,2.92335338]
[1762904202211,0.76992614,3420.8,3420.7,2.92335338]
[1762904202412,1.23182614,3420.8,3420.5,2.92354482]
[1762904202619,0.5,3420.5,3420.4,2.92363466]
[1762904202815,0.5,3420.5,3420.4,3.52377112]
[1762904203046,0.5,3420.8,3420.7,2.92333821]
[1762904203251,0.77004468,3420.8,3420.7,2.92333821]
[1762904208450,0.27004468,3420.8,3420.7,3.33343821]
[1762904210444,0.27004468,3420.8,3420.7,2.92337825]
[1762904210845,0.77004468,3420.8,3420.7,2.92337825]
[1762904212759,1.23194468,3420.8,3420.7,2.92337825]
[1762904212987,0.77004468,3420.8,3420.7,2.92337825]
[1762904213177,0.77004468,3420.8,3420.7,3.33347825]
[1762904213685,0.27004468,3420.8,3420.7,4.08789448]
[1762904213903,0.502,3421.0,3420.9,2.92320734]
[1762904214105,0.77257833,3421.0,3420.9,2.92320734]
[1762904214395,0.27257833,3421.0,3420.9,3.33330734]
[1762904215086,0.27257833,3421.0,3420.4,0.60013646]
[1762904215087,0.73447833,3421.0,3420.4,0.60013646]
[1762904215290,0.5,3420.6,3420.5,2.92354354]
[1762904215454,0.5,3419.9,3419.8,2.92414761]
[1762904215864,0.27054265,3419.9,3419.8,3.33424761]
[1762904216569,0.5,3420.1,3419.9,2.92404339]
[1762904216772,0.27052415,3420.0,3419.8,2.92411919]
[1762904217065,0.5,3420.1,3419.8,2.92411919]
[1762904217386,0.27047058,3420.0,3419.8,2.92413834]
[1762904217690,0.5,3420.1,3419.8,2.92413834]
[1762904217867,0.27047056,3420.0,3419.7,3.6122265]
[1762904218060,0.5,3420.1,3419.8,2.92412187]
[1762904218286,0.5,3420.1,3420.0,2.9239766]
[1762904218487,0.77045806,3420.1,3419.7,0.688]
[1762904218787,0.5,3419.9,3419.8,2.92407299]
[1762904219170,0.5,3419.9,3419.8,2.92414761]
[1762904219573,0.5,3419.9,3419.3,0.001]
[1762904219574,0.6327,3419.9,3419.3,0.001]
[1762904219778,0.9522,3419.8,3419.7,2.924182]
[1762904220275,0.5,3419.8,3419.7,2.924182]
[1762904221167,0.5,3419.8,3419.5,3.61133149]
[1762904221168,0.9522,3419.8,3419.3,0.5744832]
[1762904221366,0.5,3419.5,3419.3,2.92550396]
[1762904221566,0.5,3419.4,3419.3,0.001]
[1762904221762,0.4586,3419.8,3419.6,2.92424786]
[1762904221964,0.77048991,3419.7,3419.6,2.92424786]
[1762904222166,0.77048991,3419.7,3419.6,2.92431863]
[1762904224184,0.77087736,3419.7,3419.6,2.92431863]
[1762904225158,0.72307736,3419.7,3419.4,2.92443023]
[1762904225492,0.77087736,3419.6,3419.3,0.001]
[1762904225718,0.9522,3419.4,3419.3,0.001]
[1762904225868,4.31573477,3419.4,3419.3,0.001]
[1762904226068,4.77433477,3419.4,3419.3,0.001]
[1762904226680,3.42491737,3418.9,3418.8,0.001]
[1762904226880,1.40357736,3418.9,3418.8,0.001]
[1762904227095,1.86217736,3418.9,3418.8,0.001]
[1762904227299,2.34087688,3418.9,3418.8,0.001]
[1762904227463,1.86217736,3418.9,3418.8,0.001]
[1762904227659,4.78709473,3418.9,3418.8,0.001]
[1762904227897,1.86217736,3418.9,3418.8,0.001]
[1762904228811,4.78709473,3418.9,3418.8,0.001]
[1762904230096,1.86217736,3418.9,3418.8,0.001]
[1762904230409,5.55826552,3418.9,3418.8,0.001]
[1762904230705,2.63334815,3418.9,3418.8,0.001]
[1762904230915,1.86217736,3418.9,3418.8,0.001]
[1762904231699,1e-08,3419.4,3419.3,0.4111]
[1762904231911,15.05,3422.0,3419.6,2.92431863]
[1762904231912,0.1805,3421.1,3419.6,2.92431863]
[1762904232076,0.1805,3421.1,3420.4,2.92357538]
[1762904232277,0.4522,3420.5,3419.7,0.44635634]
[1762904232523,0.5,3419.9,3419.5,2.92440415]
[1762904232689,0.4586,3420.8,3419.7,2.92419315]
[1762904232877,0.502,3420.1,3420.0,2.9239766]
[1762904233387,0.502,3420.1,3420.0,3.3350766]
[1762904233708,0.502,3420.1,3420.0,4.2534109]
[1762904234629,0.002,3420.1,3420.0,4.6645109]
[1762904234925,0.002,3420.1,3420.0,4.69375066]
[1762904235084,0.002,3420.1,3420.0,5.0700149]
[1762904235485,0.002,3420.1,3420.0,19.5700149]
[1762904239811,0.002,3420.1,3420.0,20.7037557]
[1762904240224,0.002,3421.0,3420.9,2.92320734]
[1762904240542,0.002,3421.0,3420.9,5.04569443]
[1762904240738,0.002,3421.0,3420.9,5.42756236]
[1762904241539,0.002,3421.0,3420.9,19.92756236]
[1762904242550,0.002,3421.0,3420.9,21.06130316]
[1762904243107,0.002,3421.0,3420.9,27.46017408]
[1762904244146,0.002,3422.2,3420.9,27.46017408]
[1762904244147,0.002,3422.2,3422.1,2.92218228]
[1762904244328,0.002,3422.2,3422.1,3.43628228]
[1762904244731,0.002,3422.2,3422.1,17.93628228]
[1762904244930,0.002,3422.2,3422.1,20.50233813]
[1762904245130,0.002,3422.2,3422.1,28.44045385]
[1762904246463,0.002,3422.2,3422.1,21.22497893]
[1762904246662,0.002,3422.2,3422.1,17.42218228]
[1762904246663,0.502,3422.2,3422.1,17.42218228]
[1762904247377,0.002,3422.2,3422.1,17.42218228]
[1762904247571,0.002,3422.2,3422.1,17.83328228]
[1762904247746,0.002,3422.2,3422.1,18.64988628]
[1762904248083,0.002,3422.2,3422.1,19.37252708]
[1762904248282,0.002,3422.2,3422.1,22.09260741]
[1762904251282,0.4815,3422.2,3422.1,14.5]
[1762904251577,0.9815,3422.2,3422.1,17.42218228]
[1762904251775,1.435,3422.2,3422.1,17.42218228]
[1762904252173,0.502,3422.2,3422.1,17.42218228]
[1762904252575,0.9815,3422.2,3422.1,17.42218228]
[1762904252961,1.435,3422.2,3422.1,17.42218228]
[1762904254894,1.435,3422.2,3422.1,14.5]
[1762904255762,1.87069792,3422.2,3422.1,14.5]
[1762904257962,1.435,3422.2,3422.1,14.5]
[1762904258501,1.435,3422.2,3422.1,17.42218228]
[1762904258502,0.9815,3422.2,3422.1,17.42218228]
[1762904258678,0.502,3422.2,3422.1,17.42218228]
[1762904259088,0.002,3422.2,3422.1,17.83328228]
[1762904259298,0.002,3422.2,3422.1,18.64988628]
[1762904259489,0.002,3422.2,3422.1,22.00984309]
[1762904261390,0.002,3422.9,3422.8,2.92158466]
[1762904261708,0.002,3422.9,3422.8,4.42818866]
[1762904262127,0.002,3422.9,3422.8,18.92818866]
[1762904263115,0.002,3422.9,3422.8,20.47302946]
[1762904263419,0.002,3422.9,3422.8,23.15914235]
[1762904265703,0.77026836,3424.5,3424.4,2.9202196]
[1762904266020,1.433,3424.5,3424.4,2.9202196]
[1762904266400,1.433,3424.5,3424.4,17.4202196]
[1762904266589,0.9795,3424.5,3424.4,17.4202196]
[1762904266915,0.9795,3424.5,3424.4,14.5]
[1762904267113,1.433,3424.5,3424.4,17.4202196]
[1762904267323,0.4795,3424.5,3424.4,17.4202196]
[1762904267614,0.933,3424.5,3424.4,17.4202196]
[1762904267946,0.5,3424.5,3424.4,18.3385539]
[1762904268121,0.002,3424.6,3424.5,3.32563832]
[1762904268423,0.002,3424.6,3424.5,3.73673832]
[1762904268780,0.002,3424.6,3424.5,18.92673832]
[1762904268998,0.002,3424.6,3424.5,19.51138934]
[1762904269450,0.002,3424.6,3424.5,19.92248934]
[1762904269941,0.002,3424.6,3424.5,19.51138934]
[1762904272836,0.4815,3424.6,3424.5,18.00478534]
[1762904273037,1.435,3424.6,3424.5,14.5]
[1762904273240,1.435,3424.6,3424.0,2.92049436]
[1762904273241,0.5,3424.3,3424.0,2.92049436]
[1762904273446,0.5,3423.6,3422.6,6.29902556]
[1762904273737,0.5,3423.8,3423.5,14.5]
[1762904273939,0.1824,3423.7,3423.6,2.92090197]
[1762904274445,0.5,3423.8,3423.7,2.92081666]
[1762904274821,0.9795,3423.8,3423.7,2.92081666]
[1762904275207,1.433,3423.8,3423.5,14.5]
[1762904275404,0.4795,3423.6,3423.5,14.5]
[1762904275649,0.9795,3423.6,3423.5,14.5]
[1762904275823,1.4633,3423.6,3423.5,14.5]
[1762904276341,1.73312962,3423.6,3423.5,14.5]
[1762904277064,5.13764995,3423.6,3423.5,14.5]
[1762904278670,0.5,3422.5,3422.4,3.61089989]
[1762904278965,0.9703,3422.5,3422.2,3.61102149]
[1762904279165,0.9703,3422.5,3422.4,17.42192613]
[1762904279464,1.4533,3422.5,3422.4,17.42192613]
[1762904280069,0.9703,3422.5,3422.4,17.42192613]
[1762904280264,0.5,3422.5,3422.4,17.42192613]
[1762904280462,0.5,3422.6,3422.5,2.9217829]
[1762904280963,0.5,3422.6,3422.4,14.5]
[1762904280964,0.9703,3422.6,3422.4,17.42190153]
[1762904281166,0.9703,3422.6,3422.5,2.92184075]
[1762904281667,0.5,3422.6,3422.5,2.92184075]
[1762904282232,0.1984,3422.9,3422.4,14.5]
[1762904282465,0.5,3422.7,3422.4,14.5]
[1762904282867,1.1337408,3423.5,3422.5,0.0292184]
[1762904282868,0.1984,3423.2,3422.5,0.0292184]
[1762904283068,0.5,3423.1,3422.6,3.73828175]
[1762904283434,0.5,3423.1,3423.0,2.92141396]
[1762904283635,0.5,3423.1,3423.0,17.42141396]
[1762904283848,0.9703,3423.1,3423.0,17.42141396]
[1762904284173,0.9703,3423.1,3423.0,14.5]
[1762904284332,1.72314932,3423.1,3423.0,14.5]
[1762904288375,0.76984932,3423.1,3423.0,14.9111]
[1762904288575,0.5,3423.4,3423.3,2.92115794]
[1762904288773,0.77023072,3423.4,3423.3,2.92115794]
[1762904289372,0.9703,3423.4,3423.2,2.92117158]
[1762904289574,0.4703,3423.2,3423.0,14.5]
[1762904289769,0.9394,3423.1,3423.0,17.42141396]
[1762904290152,0.002,3423.1,3423.0,17.42141396]
[1762904290349,0.002,3423.1,3423.0,17.83251396]
[1762904290683,0.002,3423.1,3423.0,18.64911796]
[1762904290874,0.002,3423.1,3423.0,21.50499073]
[1762904292192,0.002,3423.1,3423.0,22.63873153]
[1762904295463,0.002,3424.6,3424.5,2.92013432]
[1762904296298,0.002,3424.6,3424.5,3.73673832]
[1762904296497,0.002,3424.6,3424.5,5.10113741]
[1762904297680,0.002,3424.6,3424.5,4.69003741]
[1762904297878,0.9553,3424.6,3424.5,2.92013432]
[1762904298082,1.4553,3424.6,3424.5,2.92013432]
[1762904298516,1.4553,3424.6,3424.4,3.60819161]
[1762904298817,0.9057,3424.5,3424.4,3.60819161]
[1762904299202,0.002,3424.6,3424.5,2.92013432]
[1762904299419,0.002,3424.6,3424.5,4.97631848]
[1762904299626,0.002,3424.6,3424.5,4.94711714]
[1762904299926,0.002,3424.6,3424.5,5.35262114]
[1762904300349,0.002,3424.6,3424.5,4.94152114]
[1762904301911,0.002,3424.6,3424.5,5.35262114]
[1762904302313,0.002,3424.6,3424.5,5.76372114]
[1762904303152,0.002,3424.6,3424.5,19.85262114]
[1762904303998,0.002,3424.6,3424.5,19.44152114]
[1762904305732,0.002,3424.6,3424.5,19.85262114]
[1762904308547,0.002,3424.6,3424.5,21.39746194]
[1762904309740,0.002,3424.6,3424.5,20.98636194]
[1762904310316,0.002,3424.6,3424.5,20.57526194]
[1762904310515,0.9141,3424.6,3424.5,17.82563832]
[1762904310721,0.9141,3424.6,3424.5,15.187]
[1762904310920,0.9141,3424.6,3424.5,18.10713432]
[1762904311121,0.9141,3424.6,3424.5,17.42013432]
[1762904311331,0.9141,3424.6,3424.5,18.10713432]
[1762904311528,0.4613,3424.6,3424.5,18.10713432]
[1762904312535,0.002,3424.6,3424.5,18.10713432]
[1762904314656,0.002,3424.6,3424.5,21.02648156]
[1762904314857,0.002,3424.6,3424.5,22.57132236]
[1762904315791,0.002,3424.9,3424.8,4.45912333]
[1762904316073,0.002,3424.9,3424.8,11.85624889]
[1762904316375,0.002,3424.9,3424.8,26.76734889]
[1762904316526,0.002,3424.9,3424.8,28.2240471]
[1762904317273,0.002,3425.1,3425.0,3.32521202]
[1762904317430,0.002,3425.1,3425.0,3.73631202]
[1762904317759,0.002,3425.1,3425.0,5.28115282]
[1762904317954,0.002,3425.1,3425.0,19.78115282]
[1762904318268,0.002,3425.1,3425.0,22.63702559]
[1762904318441,0.002,3425.1,3425.0,22.22592559]
[1762904319058,0.002,3425.1,3425.0,22.91192559]
[1762904319962,0.002,3425.1,3425.0,22.50082559]
[1762904320159,0.002,3425.1,3425.0,22.91192559]
[1762904321424,1e-08,3425.2,3425.1,5.40956758]
[1762904321629,1e-08,3425.2,3425.1,7.51231082]
[1762904322062,1e-08,3425.2,3425.1,22.01231082]
[1762904323056,0.002,3426.4,3426.3,2.91860023]
[1762904323558,0.002,3426.4,3426.3,4.01010423]
[1762904323994,0.002,3426.8,3426.7,2.91825955]
[1762904324194,0.002,3426.8,3426.7,11.44812591]
[1762904324469,0.002,3426.8,3426.7,26.76472991]
[1762904324970,0.002,3426.8,3426.7,26.83754638]
[1762904326588,0.002,3426.8,3426.7,26.42644638]
[1762904326789,0.002,3426.8,3426.7,29.31799871]
[1762904327606,0.002,3426.8,3426.7,29.72909871]
[1762904327961,0.002,3426.8,3426.7,21.84905668]
[1762904328160,0.002,3426.8,3426.7,22.94515668]
[1762904329091,0.002,3426.8,3426.7,23.35625668]
[1762904330393,0.002,3426.8,3426.7,22.94515668]
[1762904331599,1e-08,3427.0,3426.9,3.73469323]
[1762904331803,1e-08,3427.0,3426.9,11.96841531]
[1762904331975,1e-08,3427.0,3426.9,12.37951531]
[1762904332303,1e-08,3427.0,3426.9,26.87951531]
[1762904333909,1e-08,3427.4,3427.3,3.88835266]
[1762904334209,1e-08,3427.4,3427.3,5.70709346]
[1762904334411,1e-08,3427.4,3427.3,6.11819346]
[1762904334610,1e-08,3427.4,3427.3,20.61819346]
[1762904334796,1e-08,3427.4,3427.3,23.69719346]
[1762904335001,1e-08,3427.4,3427.3,21.31107286]
[1762904339817,1e-08,3427.4,3427.3,24.39007286]
[1762904340319,1e-08,3427.4,3427.3,20.89897286]
[1762904340716,1e-08,3427.4,3427.3,20.89797286]
[1762904341320,1e-08,3427.4,3427.3,18.55148946]
[1762904341321,0.97160001,3427.4,3427.3,18.55148946]
[1762904341520,0.97160001,3427.4,3427.3,18.10074866]
[1762904341715,0.97160001,3427.4,3427.3,17.41774866]
[1762904343661,0.97160001,3427.4,3427.3,14.5]
[1762904343960,1.47160001,3427.4,3427.3,14.5]
[1762904344256,1.61896001,3427.4,3427.3,14.5]
[1762904344462,0.97160001,3427.4,3427.3,17.41774866]
[1762904345623,1.47160001,3427.4,3427.3,14.5]
[1762904345960,1.74173728,3427.4,3427.3,14.5]
[1762904346518,2.49961134,3427.4,3427.3,14.5]
[1762904346717,1.74173728,3427.4,3427.3,14.5]
[1762904346962,0.5,3426.7,3426.6,0.001]
[1762904347264,0.4889,3426.7,3426.6,2.91934471]
[1762904347419,0.9716,3426.7,3426.6,17.41934471]
[1762904347619,0.9716,3426.7,3426.6,14.501]
[1762904347958,1.4716,3426.7,3426.6,17.41934471]
[1762904348459,1.4716,3426.7,3426.6,14.501]
[1762904348773,1.40843831,3426.7,3426.6,14.501]
[1762904349059,1.90843831,3426.7,3426.6,14.501]
[1762904351362,1.74203831,3426.7,3426.6,14.501]
[1762904352351,1.74203831,3426.7,3426.6,17.41934471]
[1762904353059,1.24203831,3426.7,3426.6,17.41934471]
[1762904353363,0.1924,3426.8,3426.7,2.91825955]
[1762904353564,0.5,3427.1,3426.7,1.12428259]
[1762904353769,0.98270001,3427.4,3427.3,2.91774866]
[1762904353964,1.24248721,3427.4,3427.3,2.91774866]
[1762904354170,0.97160001,3427.4,3427.3,2.91774866]
[1762904354365,0.97160001,3427.4,3427.3,17.41774866]
[1762904355032,1e-08,3427.4,3427.3,18.50825266]
[1762904355232,1e-08,3427.4,3427.3,20.61021248]
[1762904356056,1e-08,3427.4,3427.3,22.56615328]
[1762904357114,1e-08,3427.4,3427.3,21.47005328]
[1762904357401,1e-08,3427.4,3427.3,21.74395328]
[1762904357762,0.97160001,3427.4,3427.3,19.64199346]
[1762904357984,0.97160001,3427.4,3427.3,17.41774866]
[1762904358504,0.48890001,3427.4,3427.3,17.41774866]
[1762904358683,1e-08,3427.4,3427.3,17.41774866]
[1762904359192,0.48890001,3427.4,3427.3,17.41774866]
[1762904359372,0.97160001,3427.4,3427.3,17.41774866]
[1762904360874,1e-08,3427.4,3427.3,19.92531193]
[1762904362707,1e-08,3427.4,3427.3,19.92631193]
[1762904363404,0.48890001,3427.4,3427.3,19.92631193]
[1762904364901,1e-08,3427.4,3427.3,19.92631193]
[1762904365799,1e-08,3427.4,3427.3,20.33741193]
[1762904366181,1e-08,3427.4,3427.3,19.92631193]
[1762904367503,0.47020001,3427.4,3427.3,19.92631193]
[1762904367713,0.93220001,3427.4,3427.3,20.61131193]
[1762904368897,0.47020001,3427.4,3427.3,20.61131193]
[1762904373287,0.93220001,3427.4,3427.3,18.50825266]
[1762904374092,0.93220001,3427.4,3427.3,17.82425266]
[1762904374297,0.93220001,3427.4,3427.3,18.50925266]
[1762904374907,0.93220001,3427.4,3427.3,17.41874866]
[1762904375120,1.20333298,3427.4,3427.3,14.501]
[1762904375324,1.70333298,3427.4,3427.3,14.501]
[1762904375524,1.87386628,3427.4,3427.3,14.501]
[1762904377929,0.77113298,3427.4,3427.3,17.41874866]
[1762904378131,1e-08,3427.4,3427.3,18.51484866]
[1762904378326,1e-08,3427.4,3427.3,18.92035266]
[1762904378540,0.93220001,3427.4,3427.3,17.41874866]
[1762904379037,1.43220001,3427.4,3427.3,17.41874866]
[1762904379439,0.93220001,3427.4,3427.3,17.41874866]
[1762904379639,1.43220001,3427.4,3427.3,14.501]
[1762904379838,1.43220001,3427.4,3427.3,17.41874866]
[1762904380140,1.43220001,3427.4,3427.3,14.501]
[1762904380312,1.43220001,3427.4,3427.3,17.41874866]
[1762904380512,1.43220001,3427.4,3427.3,14.501]
[1762904380918,0.47020001,3427.4,3427.3,17.41874866]
[1762904381118,0.47020001,3427.4,3427.3,19.45240766]
[1762904381513,1e-08,3427.4,3427.3,19.45240766]
[1762904382762,0.47020001,3427.4,3427.3,19.45240766]
[1762904382931,1.43220001,3427.4,3427.3,17.41874866]
[1762904384263,1.43220001,3427.4,3427.3,14.501]
[1762904384453,1.70394419,3427.4,3427.3,14.501]
[1762904384655,1.24194419,3427.4,3427.3,14.501]
[1762904384855,1.70394419,3427.4,3427.3,17.41874866]
[1762904386828,1.70394419,3427.4,3427.3,14.501]
[1762904387029,1.87453861,3427.4,3427.3,14.501]
[1762904387260,1.87453861,3427.4,3427.3,0.001]
[1762904388444,4.79220214,3427.4,3427.3,0.001]
[1762904389131,1.87453861,3427.4,3427.3,0.001]
[1762904389932,4.79220214,3427.4,3427.3,0.001]
[1762904392333,1.87453861,3427.4,3427.3,0.001]
[1762904392537,4.79220214,3427.4,3427.3,0.001]
[1762904393941,5.92594294,3427.4,3427.3,0.001]
[1762904394174,3.00827941,3427.4,3427.3,0.001]
[1762904394474,5.92594294,3427.4,3427.3,0.001]
[1762904401006,10.53301233,3427.4,3427.3,0.001]
[1762904403907,3.00827941,3427.4,3427.3,0.001]
[1762904404107,10.53301233,3427.4,3427.3,0.001]
[1762904404799,7.6153488,3427.4,3427.3,0.001]
[1762904405003,10.53301233,3427.4,3427.3,0.001]
[1762904406308,3.00827941,3427.4,3427.3,0.001]
[1762904406601,5.92594294,3427.4,3427.3,0.001]
[1762904410267,3.00827941,3427.4,3427.3,0.001]
[1762904410466,5.92594294,3427.4,3427.3,0.001]
[1762904412178,3.00827941,3427.4,3427.3,0.001]
[1762904412385,5.75534852,3427.4,3427.3,0.001]
[1762904413610,2.37568499,3427.4,3427.3,0.001]
[1762904413973,0.77174419,3427.4,3427.3,0.001]
[1762904414223,0.77174419,3427.4,3427.3,3.32984866]
[1762904414572,0.77176668,3427.4,3427.3,3.32984866]
[1762904415393,0.77176668,3427.4,3427.3,4.36571859]
[1762904415576,0.27176668,3427.4,3427.3,4.36571859]
[1762904415921,1e-08,3427.4,3427.3,18.89489607]
[1762904416075,1e-08,3427.4,3427.3,18.86571859]
[1762904416615,1e-08,3427.4,3427.3,20.40496339]
[1762904418092,1e-08,3427.8,3427.7,4.86775297]
[1762904418317,1e-08,3427.8,3427.7,6.77652117]
[1762904418527,1e-08,3427.8,3427.7,7.18762117]
[1762904418819,1e-08,3427.8,3427.7,21.68762117]
[1762904419793,0.002,3428.5,3428.4,2.9168125]
[1762904419983,0.002,3428.5,3428.4,10.71133214]
[1762904420183,0.002,3428.5,3428.4,12.41926331]
[1762904420392,0.002,3428.5,3428.4,26.91926331]
[1762904420807,0.002,3428.5,3428.4,16.61903117]
[1762904421124,0.002,3428.5,3428.4,18.5119125]
[1762904421681,0.002,3428.5,3428.4,18.9230125]
[1762904422000,0.002,3428.5,3428.4,18.5119125]
[1762904422585,1.462,3428.5,3428.4,14.5]
[1762904422785,0.4845,3428.5,3428.4,14.5]
[1762904423012,0.502,3428.5,3428.4,14.9111]
[1762904423317,0.502,3428.5,3428.4,17.8279125]
[1762904423520,0.502,3428.5,3428.4,19.90239478]
[1762904423736,0.502,3428.5,3428.4,19.49129478]
[1762904423904,0.9845,3428.5,3428.4,19.49129478]
[1762904424230,0.502,3428.5,3428.4,19.90239478]
[1762904424432,0.502,3428.5,3428.4,16.98558228]
[1762904424736,0.9845,3428.5,3428.4,14.5]
[1762904424939,1.462,3428.5,3428.4,14.5]
[1762904425140,0.9845,3428.5,3428.4,14.5]
[1762904425612,0.9845,3428.5,3428.4,17.4168125]
[1762904425930,0.9845,3428.5,3428.4,14.5]
[1762904427139,1.4678,3428.5,3428.4,14.5]
[1762904427631,0.9845,3428.5,3428.4,14.5]
[1762904427951,1.4595,3428.5,3428.4,14.5]
[1762904428236,1.4595,3428.5,3427.8,2.91731241]
[1762904428237,0.5,3427.9,3427.8,2.91731241]
[1762904428624,0.9015,3427.9,3427.8,17.41731241]
[1762904429535,0.9015,3427.9,3427.8,14.5]
[1762904429726,0.9015,3427.9,3427.8,17.41732306]
[1762904430814,0.5,3427.9,3427.8,17.41732306]
[1762904430999,0.5,3428.3,3428.2,2.91691809]
[1762904431522,0.5,3428.3,3428.2,3.32801809]
[1762904432210,0.5,3428.3,3428.2,17.82801809]
[1762904433419,0.002,3428.5,3428.4,2.9168125]
[1762904433619,0.002,3428.5,3428.4,3.3279125]
[1762904434000,0.002,3428.5,3428.4,0.4111]
[1762904434601,0.002,3428.5,3428.4,3.3279125]
[1762904436016,0.002,3428.5,3428.2,17.41693665]
[1762904436017,0.4762,3428.5,3428.2,17.41693665]
[1762904436219,0.5,3428.3,3428.2,17.41693665]
[1762904436631,0.5,3428.3,3428.2,17.82803665]
[1762904436829,0.502,3428.5,3428.4,2.9168125]
[1762904439191,0.002,3428.5,3428.4,3.3279125]
[1762904440264,0.002,3428.5,3428.4,17.8279125]
[1762904442978,0.4762,3428.5,3428.4,17.4168125]
[1762904443184,0.002,3428.5,3428.4,17.8279125]
[1762904443369,0.27322766,3428.5,3428.4,17.8279125]
[1762904444286,0.27322766,3428.5,3428.4,17.4168125]
[1762904445443,0.27322766,3428.5,3428.4,17.8279125]
[1762904448300,0.002,3428.5,3428.4,19.26598474]
[1762904449297,0.002,3428.5,3428.4,19.67148874]
[1762904450885,0.002,3428.5,3428.4,24.41495338]
[1762904451787,0.002,3428.5,3428.4,19.26038874]
[1762904452101,0.002,3428.5,3428.4,18.17188474]
[1762904454648,0.002,3428.5,3428.4,18.58298474]
[1762904455943,0.002,3428.5,3428.4,18.17188474]
[1762904462255,0.002,3428.5,3428.4,18.58298474]
[1762904463058,0.9719,3428.5,3428.4,17.4168125]
[1762904463259,5.70166464,3428.5,3428.1,0.001]
[1762904463468,0.9699,3428.2,3428.1,0.001]
[1762904463686,4.15829186,3428.2,3428.1,0.001]
[1762904463881,7.20176712,3428.2,3427.7,14.501]
[1762904464036,1.0962,3427.8,3427.7,14.501]
[1762904464241,1.85390919,3427.8,3427.7,14.501]
[1762904470786,1.36760919,3427.8,3427.7,14.501]
[1762904471177,1.85390919,3427.8,3427.7,14.501]
[1762904472380,1.5825,3427.8,3427.7,14.501]
[1762904477807,0.4863,3428.4,3428.0,2.91710158]
[1762904478005,0.9699,3428.1,3428.0,2.91710158]
[1762904478178,1.24025017,3428.1,3428.0,2.91710158]
[1762904478378,0.9699,3428.1,3428.0,2.91710158]
[1762904478594,0.5,3428.1,3428.0,3.32920158]
[1762904479188,0.002,3428.5,3428.4,2.9168125]
[1762904479416,0.502,3428.5,3428.4,2.9168125]
[1762904479881,0.502,3428.5,3428.4,17.8289125]
[1762904480079,0.002,3428.5,3428.4,17.8289125]
[1762904480676,1.4582,3428.5,3428.4,17.4168125]
[1762904482409,0.9719,3428.5,3428.4,17.4168125]
[1762904482611,0.502,3428.5,3428.4,17.4168125]
[1762904482922,0.502,3428.5,3428.4,19.518484]
[1762904486499,0.502,3428.5,3428.4,17.4168125]
[1762904486895,0.002,3428.5,3428.4,17.8289125]
[1762904487920,0.002,3428.5,3428.4,18.2410125]
[1762904488884,0.002,3428.5,3428.4,17.8289125]
[1762904489083,0.002,3428.5,3428.4,20.400004]
[1762904490589,0.002,3428.5,3428.4,20.812104]
[1762904491531,0.002,3428.5,3428.4,20.400004]
[1762904495746,0.002,3428.5,3428.4,21.082004]
[1762904498223,0.002,3428.5,3428.4,20.669904]
[1762904498451,1.452,3428.5,3428.4,17.4168125]
[1762904500985,1.452,3428.5,3428.4,14.5]
[1762904501280,1.452,3428.5,3428.4,17.4168125]
[1762904501680,0.502,3428.5,3428.4,17.8289125]
[1762904501979,0.002,3428.5,3428.4,20.26348441]
[1762904503153,0.002,3428.5,3428.4,20.67558441]
[1762904504689,0.002,3428.5,3428.4,20.26348441]
[1762904504895,0.002,3428.5,3428.4,20.67558441]
[1762904505190,0.002,3428.5,3428.4,20.26348441]
[1762904506268,0.4841,3428.5,3428.4,17.4168125]
[1762904506481,0.002,3428.5,3428.4,17.4168125]
[1762904506872,0.002,3428.5,3428.4,17.8289125]
[1762904507613,0.002,3428.5,3428.4,17.4168125]